fUSD/lending_fUSD_20260423
["ID","MTS","AMOUNT","RATE_DAILY","PERIOD"]
[421044314,1776950922254,-500.0,0.00043553,120]
[421044315,1776950922333,-2466.44,0.00043553,120]
[421044316,1776950922414,-500.0,0.00043553,120]
[421044317,1776950922502,-1357.76,0.00043553,120]
[421044318,1776950922585,-500.0,0.00043553,120]
[421044319,1776950922665,-774.81,0.00043553,120]
[421044320,1776950922745,-500.0,0.00043553,120]
[421044321,1776950922826,-500.0,0.00043553,120]
[421044322,1776950922910,-2168.71,0.00043553,120]
[421044323,1776950922992,-1357.76,0.00043553,120]
[421044324,1776950923073,-500.0,0.00043553,120]
[421044325,1776950923155,-2466.44,0.00043553,120]
[421044326,1776950923236,-774.81,0.00043553,120]
[421044327,1776950923319,-3674.26,0.00043553,120]
[421044328,1776950923399,-269.29947714,0.00043553,120]
[421044329,1776950923481,-8259.28,0.00043553,120]
[421044330,1776950923565,-500.0,0.00043553,120]
[421044331,1776950923649,-2168.71,0.00043553,120]
[421044332,1776950923731,-1357.76,0.00043553,120]
[421044333,1776950923810,-500.0,0.00043553,120]
[421044334,1776950923887,-2466.44,0.00043553,120]
[421044335,1776950923968,-774.82888694,0.00043553,120]
[421044336,1776950924049,-8259.28,0.00043553,120]
[421044337,1776950924130,-1077.26,0.00043553,120]
[421044338,1776950924209,-2168.71,0.00043553,120]
[421044339,1776950924288,-1357.76,0.00043553,120]
[421044340,1776950924369,-500.0,0.00043553,120]
[421044341,1776950924452,-2466.44,0.00043553,120]
[421044342,1776950924533,-500.0,0.00043553,120]
[421044343,1776950924972,-8259.28,0.00043553,120]
[421044344,1776950925055,-1077.26,0.00043553,120]
[421044345,1776950925136,-2168.71,0.00043553,120]
[421044346,1776950925221,-1357.76,0.00043553,120]
[421044347,1776950925303,-500.0,0.00043553,120]
[421044348,1776950925385,-500.0,0.00043553,120]
[421044349,1776950925463,-2466.44,0.00043553,120]
[421044350,1776950925543,-8259.28,0.00043553,120]
[421044351,1776950925620,-1077.26,0.00043553,120]
[421044352,1776950925699,-2168.71,0.00043553,120]
[421044353,1776950925777,-1357.76,0.00043553,120]
[421044354,1776950925854,-500.0,0.00043553,120]
[421044355,1776950925933,-500.0,0.00043553,120]
[421044356,1776950926014,-8259.28,0.00043553,120]
[421044357,1776950926100,-1077.26,0.00043553,120]
[421044358,1776950926188,-2168.71,0.00043553,120]
[421044359,1776950926275,-2466.44,0.00043553,120]
[421044360,1776950926363,-1357.76,0.00043553,120]
[421044361,1776950926449,-500.0,0.00043553,120]
[421044362,1776950926533,-500.0,0.00043553,120]
[421044363,1776950926618,-8259.28,0.00043553,120]
[421044364,1776950926702,-1077.26,0.00043553,120]
[421044365,1776950926785,-2168.71,0.00043553,120]
[421044366,1776950926868,-1357.76,0.00043553,120]
[421044367,1776950926956,-2466.44,0.00043553,120]
[421044368,1776950927043,-861.74,0.00043553,120]
[421044369,1776950927131,-500.0,0.00043553,120]
[421044370,1776950927217,-500.0,0.00043553,120]
[421044371,1776950927300,-1077.26,0.00043553,120]
[421044372,1776950927382,-2168.71,0.00043553,120]
[421044373,1776950927460,-861.74,0.00043553,120]
[421044374,1776950927538,-1077.26,0.00043553,120]
[421044375,1776950927616,-3221.04,0.00043553,120]
[421044376,1776950927694,-8259.28,0.00043553,120]
[421044377,1776950927772,-1357.76,0.00043553,120]
[421044378,1776950927852,-2466.44,0.00043553,120]
[421044379,1776950927930,-1077.26,0.00043553,120]
[421044380,1776950928006,-500.0,0.00043553,120]
[421044381,1776950928083,-3221.04,0.00043553,120]
[421044382,1776950928161,-8259.28,0.00043553,120]
[421044383,1776950928241,-1357.82,0.00043553,120]
[421044384,1776950928321,-2168.71,0.00043553,120]
[421044385,1776950928402,-500.0,0.00043553,120]
[421044386,1776950928482,-2466.44,0.00043553,120]
[421044387,1776950928562,-1077.26,0.00043553,120]
[421044388,1776950928643,-500.0,0.00043553,120]
[421044389,1776950928721,-861.74,0.00043553,120]
[421044390,1776950928800,-3221.04,0.00043553,120]
[421044391,1776950928885,-8259.28,0.00043553,120]
[421044392,1776950928963,-500.0,0.00043553,120]
[421044393,1776950929041,-2466.44,0.00043553,120]
[421044394,1776950929120,-2168.71,0.00043553,120]
[421044395,1776950929200,-500.0,0.00043553,120]
[421044396,1776950929282,-1077.26,0.00043553,120]
[421044397,1776950929369,-861.74,0.00043553,120]
[421044398,1776950929450,-3221.04,0.00043553,120]
[421044399,1776950929531,-8259.28,0.00043553,120]
[421044400,1776950929612,-500.0,0.00043553,120]
[421044401,1776950929694,-2168.71,0.00043553,120]
[421044402,1776950929773,-2466.44,0.00043553,120]
[421044403,1776950929852,-500.0,0.00043553,120]
[421044404,1776950929931,-861.74,0.00043553,120]
[421044405,1776950930008,-1077.26,0.00043553,120]
[421044406,1776950930089,-8259.28,0.00043553,120]
[421044407,1776950930169,-500.0,0.00043553,120]
[421044408,1776950930250,-3221.04,0.00043553,120]
[421044409,1776950930331,-2168.71,0.00043553,120]
[421044410,1776950930409,-2466.44,0.00043553,120]
[421044411,1776950930487,-500.0,0.00043553,120]
[421044412,1776950930565,-861.74,0.00043553,120]
[421044413,1776950930644,-1077.26,0.00043553,120]
[421044414,1776950930729,-8259.28,0.00043553,120]
[421044415,1776950930812,-500.0,0.00043553,120]
[421044416,1776950930891,-3221.04,0.00043553,120]
[421044417,1776950930972,-2168.71,0.00043553,120]
[421044418,1776950931054,-2466.44,0.00043553,120]
[421044419,1776950931132,-500.0,0.00043553,120]
[421044420,1776950931211,-1010.86,0.00043553,120]
[421044421,1776950931293,-861.74,0.00043553,120]
[421044422,1776950931375,-1077.26,0.00043553,120]
[421044423,1776950931453,-3674.26,0.00043553,120]
[421044424,1776950931531,-500.0,0.00043553,120]
[421044425,1776950931612,-8259.28,0.00043553,120]
[421044426,1776950931697,-3221.04,0.00043553,120]
[421044427,1776950931782,-500.0,0.00043553,120]
[421044428,1776950931865,-2168.71,0.00043553,120]
[421044429,1776950931948,-2466.44,0.00043553,120]
[421044430,1776950932035,-500.0,0.00043553,120]
[421044431,1776950932122,-1010.86,0.00043553,120]
[421044432,1776950932208,-861.74,0.00043553,120]
[421044433,1776950932293,-1077.26,0.00043553,120]
[421044434,1776950932381,-3674.26,0.00043553,120]
[421044435,1776950932467,-500.0,0.00043553,120]
[421044436,1776950932552,-8259.28,0.00043553,120]
[421044437,1776950932637,-500.0,0.00043553,120]
[421044438,1776950932725,-3221.04,0.00043553,120]
[421044439,1776950932810,-2168.71,0.00043553,120]
[421044440,1776950932896,-2466.44,0.00043553,120]
[421044441,1776950932981,-500.0,0.00043553,120]
[421044442,1776950933066,-1010.86,0.00043553,120]
[421044443,1776950933151,-861.74,0.00043553,120]
[421044444,1776950933233,-1077.26,0.00043553,120]
[421044445,1776950933318,-3674.26,0.00043553,120]
[421044446,1776950933404,-4595.68,0.00043553,120]
[421044447,1776950934087,-8259.28,0.00043553,120]
[421044448,1776950934168,-497.29461751,0.00043553,120]
[421044449,1776950934250,-2168.71,0.00043553,120]
[421044450,1776950934332,-3221.04,0.00043553,120]
[421044451,1776950934414,-2466.44,0.00043553,120]
[421044452,1776950934495,-500.0,0.00043553,120]
[421044453,1776950934575,-277.37141339,0.00043553,120]
[421044454,1776950934655,-500.0,0.00043553,120]
[421044455,1776950934737,-1010.86,0.00043553,120]
[421044456,1776950934818,-1077.26,0.00043553,120]
[421044457,1776950934897,-861.74,0.00043553,120]
[421044458,1776950934976,-8259.28,0.00043553,120]
[421044459,1776950935057,-2168.93700456,0.00043553,120]
[421044460,1776950935137,-2466.44,0.00043553,120]
[421044461,1776950935219,-4595.68,0.00043553,120]
[421044462,1776950935301,-500.0,0.00043553,120]
[421044463,1776950935380,-3674.26,0.00043553,120]
[421044464,1776950935460,-500.0,0.00043553,120]
[421044465,1776950935543,-1010.86,0.00043553,120]
[421044466,1776950935626,-1077.26,0.00043553,120]
[421044467,1776950935709,-861.74,0.00043553,120]
[421044468,1776950935789,-3221.04,0.00043553,120]
[421044469,1776950935870,-8259.28,0.00043553,120]
[421044470,1776950935952,-2466.44,0.00043553,120]
[421044471,1776950936034,-4595.68,0.00043553,120]
[421044472,1776950936118,-500.0,0.00043553,120]
[421044473,1776950936200,-3674.26,0.00043553,120]
[421044474,1776950936283,-500.0,0.00043553,120]
[421044475,1776950936366,-1010.86,0.00043553,120]
[421044476,1776950936449,-1077.26,0.00043553,120]
[421044477,1776950936531,-861.74,0.00043553,120]
[421044478,1776950936611,-3221.04,0.00043553,120]
[421044479,1776950936691,-8259.28,0.00043553,120]
[421044480,1776950936772,-2466.44,0.00043553,120]
[421044481,1776950936855,-500.0,0.00043553,120]
[421044482,1776950936939,-4595.68,0.00043553,120]
[421044483,1776950937020,-448.06,0.00043553,120]
[421044484,1776950937102,-3674.26,0.00043553,120]
[421044485,1776950937184,-1077.26,0.00043553,120]
[421044486,1776950937267,-1010.86,0.00043553,120]
[421044487,1776950937348,-861.74,0.00043553,120]
[421044488,1776950937431,-500.0,0.00043553,120]
[421044489,1776950937512,-3221.04,0.00043553,120]
[421044490,1776950937591,-8259.43126014,0.00043553,120]
[421044491,1776950937676,-2466.44,0.00043553,120]
[421044492,1776950937760,-500.0,0.00043553,120]
[421044493,1776950937841,-4595.68,0.00043553,120]
[421044494,1776950937922,-1077.26,0.00043553,120]
[421044495,1776950938004,-3674.26,0.00043553,120]
[421044496,1776950938089,-1010.86,0.00043553,120]
[421044497,1776950938173,-500.0,0.00043553,120]
[421044498,1776950938258,-861.74,0.00043553,120]
[421044499,1776950938343,-3221.04,0.00043553,120]
[421044500,1776950938426,-512.18691586,0.00043553,120]
[421044501,1776950938508,-1077.26,0.00043553,120]
[421044502,1776950938592,-2466.44769327,0.00043553,120]
[421044503,1776950938673,-4595.68,0.00043553,120]
[421044504,1776950938753,-3674.26,0.00043553,120]
[421044505,1776950938834,-1010.86,0.00043553,120]
[421044506,1776950938915,-500.0,0.00043553,120]
[421044507,1776950938997,-861.74,0.00043553,120]
[421044508,1776950939077,-3221.04,0.00043553,120]
[421044509,1776950939158,-1077.26,0.00043553,120]
[421044510,1776950939243,-4595.68,0.00043553,120]
[421044511,1776950939331,-3674.26,0.00043553,120]
[421044512,1776950939420,-1010.86,0.00043553,120]
[421044513,1776950939508,-500.0,0.00043553,120]
[421044514,1776950939593,-861.74,0.00043553,120]
[421044515,1776950939678,-3221.04,0.00043553,120]
[421044516,1776950939762,-1077.26,0.00043553,120]
[421044517,1776950939843,-3674.26,0.00043553,120]
[421044518,1776950939929,-4595.68,0.00043553,120]
[421044519,1776950940013,-1010.86,0.00043553,120]
[421044520,1776950940098,-861.74,0.00043553,120]
[421044521,1776950940182,-3221.04,0.00043553,120]
[421044522,1776950940269,-500.0,0.00043553,120]
[421044523,1776950940353,-1077.38565548,0.00043553,120]
[421044524,1776950940437,-3674.26,0.00043553,120]
[421044525,1776950940527,-4595.68,0.00043553,120]
[421044526,1776950940615,-1010.86,0.00043553,120]
[421044527,1776950940701,-861.74,0.00043553,120]
[421044528,1776950940787,-3221.04,0.00043553,120]
[421044529,1776950940870,-1561.35,0.00043553,120]
[421044530,1776950940954,-1135.13,0.00043553,120]
[421044531,1776950941039,-500.0,0.00043553,120]
[421044532,1776950941126,-3674.26,0.00043553,120]
[421044533,1776950941208,-4595.68,0.00043553,120]
[421044534,1776950941294,-1010.86,0.00043553,120]
[421044535,1776950941379,-861.74,0.00043553,120]
[421044536,1776950941467,-3221.04,0.00043553,120]
[421044537,1776950941553,-1561.35,0.00043553,120]
[421044538,1776950941638,-500.0,0.00043553,120]
[421044539,1776950941724,-3674.26,0.00043553,120]
[421044540,1776950941810,-4595.68,0.00043553,120]
[421044541,1776950941894,-1010.86,0.00043553,120]
[421044542,1776950941979,-861.74,0.00043553,120]
[421044543,1776950942063,-3221.04,0.00043553,120]
[421044544,1776950942150,-1135.13,0.00043553,120]
[421044545,1776950942244,-500.0,0.00043553,120]
[421044546,1776950942334,-1561.35,0.00043553,120]
[421044547,1776950942424,-4595.68,0.00043553,120]
[421044548,1776950942511,-3674.26,0.00043553,120]
[421044549,1776950942600,-1010.86,0.00043553,120]
[421044550,1776950942688,-861.74,0.00043553,120]
[421044551,1776950943117,-3221.04,0.00043553,120]
[421044552,1776950943201,-1135.13,0.00043553,120]
[421044553,1776950943284,-1561.40412033,0.00043553,120]
[421044554,1776950943368,-500.0,0.00043553,120]
[421044555,1776950943453,-4595.68,0.00043553,120]
[421044556,1776950943540,-3674.26,0.00043553,120]
[421044557,1776950943624,-1010.86,0.00043553,120]
[421044558,1776950943707,-861.74,0.00043553,120]
[421044559,1776950943792,-1135.13,0.00043553,120]
[421044560,1776950943875,-3221.04,0.00043553,120]
[421044561,1776950943958,-500.0,0.00043553,120]
[421044562,1776950944042,-1202.59,0.00043553,120]
[421044563,1776950944126,-4595.68,0.00043553,120]
[421044564,1776950944209,-3674.26,0.00043553,120]
[421044565,1776950944291,-1010.86,0.00043553,120]
[421044566,1776950944377,-861.74,0.00043553,120]
[421044567,1776950944462,-3221.04,0.00043553,120]
[421044568,1776950944546,-500.0,0.00043553,120]
[421044569,1776950944630,-1202.59,0.00043553,120]
[421044570,1776950944715,-3674.26,0.00043553,120]
[421044571,1776950944797,-4595.68,0.00043553,120]
[421044572,1776950944879,-500.0,0.00043553,120]
[421044573,1776950944961,-1135.13,0.00043553,120]
[421044574,1776950945045,-1010.86,0.00043553,120]
[421044575,1776950945129,-861.86528547,0.00043553,120]
[421044576,1776950945212,-3221.04,0.00043553,120]
[421044577,1776950945296,-500.0,0.00043553,120]
[421044578,1776950945381,-1202.59,0.00043553,120]
[421044579,1776950945463,-4595.68,0.00043553,120]
[421044580,1776950945545,-3674.26,0.00043553,120]
[421044581,1776950945627,-500.0,0.00043553,120]
[421044582,1776950945710,-500.0,0.00043553,120]
[421044583,1776950945798,-1135.13,0.00043553,120]
[421044584,1776950945880,-500.0,0.00043553,120]
[421044585,1776950945964,-1010.86,0.00043553,120]
[421044586,1776950946047,-3221.18136053,0.00043553,120]
[421044587,1776950946132,-500.0,0.00043553,120]
[421044588,1776950946217,-1202.59,0.00043553,120]
[421044589,1776950946303,-4595.68,0.00043553,120]
[421044590,1776950946388,-3674.26,0.00043553,120]
[421044591,1776950946473,-500.0,0.00043553,120]
[421044592,1776950946558,-1135.13,0.00043553,120]
[421044593,1776950946641,-500.0,0.00043553,120]
[421044594,1776950946725,-4595.68,0.00043553,120]
[421044595,1776950946807,-1202.59,0.00043553,120]
[421044596,1776950946889,-3674.26,0.00043553,120]
[421044597,1776950946970,-1135.13,0.00043553,120]
[421044598,1776950947053,-500.0,0.00043553,120]
[421044599,1776950947139,-500.0,0.00043553,120]
[421044600,1776950947226,-4595.68,0.00043553,120]
[421044601,1776950947314,-156.13155728,0.00043553,120]
[421044602,1776950947403,-1135.13,0.00043553,120]
[421044603,1776950947487,-624.8,0.00043553,120]
[421044604,1776950947576,-500.0,0.00043553,120]
[421044605,1776950947663,-4595.68,0.00043553,120]
[421044606,1776950947750,-1135.13,0.00043553,120]
[421044607,1776950947837,-3674.26,0.00043553,120]
[421044608,1776950947923,-1202.59,0.00043553,120]
[421044609,1776950948008,-1340.06,0.00043553,120]
[421044610,1776950948090,-500.0,0.00043553,120]
[421044611,1776950948174,-4595.68,0.00043553,120]
[421044612,1776950948257,-1135.13,0.00043553,120]
[421044613,1776950948340,-3674.26,0.00043553,120]
[421044614,1776950948424,-1202.59,0.00043553,120]
[421044615,1776950948511,-1340.06,0.00043553,120]
[421044616,1776950948598,-1388.82,0.00043553,120]
[421044617,1776950948681,-4595.68,0.00043553,120]
[421044618,1776950948764,-1135.13,0.00043553,120]
[421044619,1776950948847,-3674.26,0.00043553,120]
[421044620,1776950948929,-1340.06,0.00043553,120]
[421044621,1776950949013,-1388.82,0.00043553,120]
[421044622,1776950949096,-4595.68,0.00043553,120]
[421044623,1776950949180,-1135.13,0.00043553,120]
[421044624,1776950949262,-1388.82,0.00043553,120]
[421044625,1776950949345,-1202.59,0.00043553,120]
[421044626,1776950949429,-4595.85680967,0.00043553,120]
[421044627,1776950949526,-1340.06,0.00043553,120]
[421044628,1776950949611,-869.65661269,0.00043553,120]
[421044661,1776951008622,5110.6,6.59e-05,2]
[421044780,1776951088456,-1117.98803837,0.0002,120]
[421044781,1776951088568,-150.0,0.00026058,120]
[421044782,1776951088648,-1444.0,0.00026137,120]
[421044783,1776951088747,-496580.85283802,0.000295,120]
[421044784,1776951088828,-150.0,0.00029629,120]
[421044785,1776951088911,-1121.51201,0.0003,120]
[421044786,1776951088991,-1401.89006,0.0003,120]
[421044787,1776951089070,-160.0,0.0003,120]
[421044788,1776951089156,-1200.9780832,0.00030575,120]
[421044789,1776951089234,-160.0,0.000309,120]
[421044790,1776951089312,-1121.51201,0.00031,120]
[421044791,1776951089391,-2031.0,0.000313,120]
[421044792,1776951089471,-160.0,0.000318,120]
[421044793,1776951089551,-1121.51201,0.00032,120]
[421044794,1776951089629,-4519.03254393,0.00032,120]
[421044795,1776951089734,-500.0,0.00032999,120]
[421044796,1776951089814,-500.0,0.00032999,120]
[421044797,1776951089894,-1121.51201,0.00033,120]
[421044798,1776951089978,-1121.51204,0.00034,120]
[421044799,1776951090060,-1000.0,0.00034,120]
[421044800,1776951090140,-150.0,0.00034247,120]
[421044801,1776951090223,-167.0,0.00034247,120]
[421044802,1776951090305,-150.0,0.00034286,120]
[421044803,1776951090385,-230.359788,0.00034499,120]
[421044804,1776951090466,-333.0,0.00035,120]
[421044805,1776951090544,-82489.96514098,0.00035,120]
[421044806,1776951090635,-1319.34,0.0003631,120]
[421044807,1776951090711,-500.0,0.00036705,120]
[421044808,1776951090789,-500.0,0.00036952,120]
[421044809,1776951090869,-500.0,0.00037198,120]
[421044810,1776951090946,-2000.0,0.00037341,120]
[421044811,1776951091023,-2000.0,0.00037381,120]
[421044812,1776951091098,-2000.0,0.00037432,120]
[421044813,1776951091175,-500.0,0.00037445,120]
[421044814,1776951091253,-2000.0,0.00037474,120]
[421044815,1776951091330,-2000.0,0.00037524,120]
[421044816,1776951091408,-2000.0,0.00037584,120]
[421044817,1776951091485,-2000.0,0.00037661,120]
[421044818,1776951091565,-500.0,0.00037691,120]
[421044819,1776951091643,-2000.0,0.00037706,120]
[421044820,1776951091719,-2000.0,0.00037759,120]
[421044821,1776951091803,-2000.0,0.00037788,120]
[421044822,1776951091880,-500.0,0.00037938,120]
[421044823,1776951091957,-500.0,0.00038184,120]
[421044824,1776951092032,-1218.45,0.00038205,120]
[421044825,1776951092106,-2847.89,0.00038205,120]
[421044826,1776951092184,-1016.58,0.00038205,120]
[421044827,1776951092261,-1016.58,0.00038205,120]
[421044828,1776951092338,-1016.58,0.00038205,120]
[421044829,1776951092413,-1016.58,0.00038205,120]
[421044830,1776951092487,-150.0,0.00038356,120]
[421044831,1776951092560,-167.0,0.00038356,120]
[421044832,1776951092637,-284.96401501,0.00038384,120]
[421044833,1776951092711,-295.065142,0.00038384,120]
[421044834,1776951092783,-262.27759494,0.00038384,120]
[421044835,1776951092857,-442.63194861,0.00038384,120]
[421044836,1776951092931,-281.42837623,0.00038384,120]
[421044837,1776951093004,-10000.0,0.000384,120]
[421044838,1776951093082,-181.55,0.000384,120]
[421044839,1776951093155,-500.0,0.00038431,120]
[421044840,1776951093232,-284.96401501,0.00038658,120]
[421044841,1776951093308,-295.065142,0.00038658,120]
[421044842,1776951093380,-262.27759494,0.00038658,120]
[421044843,1776951093452,-442.63194861,0.00038658,120]
[421044844,1776951093523,-281.42837623,0.00038658,120]
[421044845,1776951093598,-500.0,0.00038678,120]
[421044846,1776951093782,-500.0,0.00038924,120]
[421044847,1776951093861,-284.96401501,0.00038932,120]
[421044848,1776951093940,-295.065142,0.00038932,120]
[421044849,1776951094017,-262.27759494,0.00038932,120]
[421044850,1776951094097,-442.63194861,0.00038932,120]
[421044851,1776951094174,-281.42837623,0.00038932,120]
[421044852,1776951094253,-500.0,0.00039171,120]
[421044853,1776951094329,-284.96401501,0.00039206,120]
[421044854,1776951094404,-295.065142,0.00039206,120]
[421044855,1776951094475,-262.27759494,0.00039206,120]
[421044856,1776951094549,-442.63194861,0.00039206,120]
[421044857,1776951094621,-281.42837623,0.00039206,120]
[421044858,1776951094694,-10000.0,0.000394,120]
[421044859,1776951095348,-500.0,0.00039417,120]
[421044860,1776951095425,-284.96401501,0.0003948,120]
[421044861,1776951095501,-295.065142,0.0003948,120]
[421044862,1776951095576,-262.27759494,0.0003948,120]
[421044863,1776951095650,-442.63194861,0.0003948,120]
[421044864,1776951095724,-281.42837623,0.0003948,120]
[421044865,1776951095802,-500.0,0.00039664,120]
[421044866,1776951095877,-1052052.80143478,0.000397,120]
[421044867,1776951095955,-284.96401501,0.00039754,120]
[421044868,1776951096030,-295.065142,0.00039754,120]
[421044869,1776951096106,-262.27759494,0.00039754,120]
[421044870,1776951096184,-442.63194861,0.00039754,120]
[421044871,1776951096263,-281.42837623,0.00039754,120]
[421044872,1776951096346,-500.0,0.0003991,120]
[421044873,1776951096425,-1319.34,0.0003993,120]
[421044874,1776951096511,-191.72194197,0.0004,120]
[421044875,1776951096589,-30000.0,0.0004,120]
[421044876,1776951096670,-5050.30937068,0.0004,120]
[421044877,1776951096748,-80929.78851108,0.0004,120]
[421044878,1776951096823,-9406.88924769,0.0004,120]
[421044879,1776951096898,-3010.79468676,0.0004,120]
[421044880,1776951096974,-200.0,0.0004,120]
[421044881,1776951097049,-4449.29,0.0004,120]
[421044882,1776951097125,-187.0,0.0004,120]
[421044883,1776951097202,-2500.0,0.0004,120]
[421044884,1776951097281,-15000.0,0.0004,120]
[421044885,1776951097362,-15000.0,0.0004,120]
[421044886,1776951097439,-15000.0,0.0004,120]
[421044887,1776951097515,-284.96401501,0.00040028,120]
[421044888,1776951097592,-295.065142,0.00040028,120]
[421044889,1776951097669,-262.27759494,0.00040028,120]
[421044890,1776951097748,-442.63194861,0.00040028,120]
[421044891,1776951097824,-281.42837623,0.00040028,120]
[421044892,1776951097902,-187.0,0.00040095,120]
[421044893,1776951097988,-187.0,0.00040095,120]
[421044894,1776951098067,-500.0,0.00040157,120]
[421044895,1776951098142,-3532.39,0.000403,120]
[421044896,1776951098218,-15000.0,0.000403,120]
[421044897,1776951098294,-15000.0,0.000403,120]
[421044898,1776951098371,-284.96401501,0.00040302,120]
[421044899,1776951098445,-295.065142,0.00040302,120]
[421044900,1776951098521,-262.27759494,0.00040302,120]
[421044901,1776951098597,-442.63194861,0.00040302,120]
[421044902,1776951098670,-281.42837623,0.00040302,120]
[421044903,1776951098744,-10000.0,0.000404,120]
[421044904,1776951098819,-500.0,0.00040404,120]
[421044905,1776951098895,-203.59,0.00040419,120]
[421044906,1776951098970,-228.19,0.00040419,120]
[421044907,1776951099049,-508.05,0.00040419,120]
[421044908,1776951099124,-187.0,0.000405,120]
[421044909,1776951099200,-2499.98,0.000405,120]
[421044910,1776951099280,-284.96401501,0.00040576,120]
[421044911,1776951099357,-295.065142,0.00040576,120]
[421044912,1776951099432,-262.27759494,0.00040576,120]
[421044913,1776951099510,-442.63194861,0.00040576,120]
[421044914,1776951099587,-281.42837623,0.00040576,120]
[421044915,1776951099661,-15000.0,0.000406,120]
[421044916,1776951099738,-500.0,0.0004065,120]
[421044917,1776951099814,-1319.34,0.0004083,120]
[421044918,1776951099891,-284.96401501,0.0004085,120]
[421044919,1776951099966,-295.065142,0.0004085,120]
[421044920,1776951100042,-262.27759494,0.0004085,120]
[421044921,1776951100119,-442.63194861,0.0004085,120]
[421044922,1776951100198,-281.42837623,0.0004085,120]
[421044923,1776951100277,-1000.0,0.0004088,120]
[421044924,1776951100356,-500.0,0.00040897,120]
[421044925,1776951100435,-2120.05,0.000409,120]
[421044926,1776951100520,-1302.61206187,0.00041,120]
[421044927,1776951100597,-5000.0,0.00041,120]
[421044928,1776951100673,-1000.0,0.00041,120]
[421044929,1776951100747,-500.0,0.00041,120]
[421044930,1776951100820,-187.0,0.00041,120]
[421044931,1776951100896,-2000.0,0.00041096,120]
[421044932,1776951100973,-256.0,0.00041096,120]
[421044933,1776951101059,-191.0,0.00041096,120]
[421044934,1776951101134,-500.0,0.00041096,120]
[421044935,1776951101209,-500.0,0.00041096,120]
[421044936,1776951101287,-500.0,0.00041096,120]
[421044937,1776951101363,-500.0,0.00041096,120]
[421044938,1776951101437,-500.0,0.00041096,120]
[421044939,1776951101513,-500.0,0.00041096,120]
[421044940,1776951101590,-383.90659549,0.00041096,120]
[421044941,1776951101667,-250.0,0.000411,120]
[421044942,1776951101745,-5000.0,0.000411,120]
[421044943,1776951101820,-150.0,0.00041105,120]
[421044944,1776951101896,-284.96401501,0.00041124,120]
[421044945,1776951101971,-295.065142,0.00041124,120]
[421044946,1776951102045,-262.27759494,0.00041124,120]
[421044947,1776951102120,-442.63194861,0.00041124,120]
[421044948,1776951102197,-281.42837623,0.00041124,120]
[421044949,1776951102279,-500.0,0.00041143,120]
[421044950,1776951102358,-250.0,0.000412,120]
[421044951,1776951102429,-5000.0,0.000412,120]
[421044952,1776951102503,-2053.60681186,0.00041205,120]
[421044953,1776951102575,-250.0,0.000413,120]
[421044954,1776951102646,-5000.0,0.000413,120]
[421044955,1776951102715,-163.32475685,0.000413,120]
[421044956,1776951102785,-2000.0,0.0004137,120]
[421044957,1776951102856,-500.0,0.0004139,120]
[421044958,1776951102925,-295.065142,0.00041398,120]
[421044959,1776951102995,-262.27759494,0.00041398,120]
[421044960,1776951103068,-442.63194861,0.00041398,120]
[421044961,1776951103140,-281.42837623,0.00041398,120]
[421044962,1776951103213,-250.0,0.000414,120]
[421044963,1776951103751,-5000.0,0.000414,120]